bitfinex-derivatives/quotes_BTCF0:USTF0_20241023
["timestamp","ask_amount","ask_price","bid_price","bid_amount"]
[1729677082467,0.17,66607.0,66606.0,0.075109]
[1729677082667,0.01455153,66611.0,66606.0,0.075109]
[1729677082870,0.03471731,66610.0,66607.0,0.075107]
[1729677083180,0.03471731,66609.0,66607.0,0.075107]
[1729677083364,0.03471731,66608.0,66607.0,0.075107]
[1729677084475,0.03493332,66608.0,66607.0,0.075107]
[1729677084874,0.01455153,66611.0,66608.0,0.075107]
[1729677085070,0.03497849,66610.0,66608.0,0.075107]
[1729677085380,0.03497849,66609.0,66608.0,0.075107]
[1729677086176,0.03498868,66609.0,66608.0,0.075107]
[1729677087975,0.03498868,66609.0,66608.0,0.10201889]
[1729677088463,0.07544855,66609.0,66604.0,0.075111]
[1729677088666,0.0754551,66608.0,66606.0,0.075109]
[1729677088864,0.01455153,66611.0,66609.0,0.075106]
[1729677089078,0.01455153,66611.0,66609.0,0.15007672]
[1729677090972,0.01455153,66611.0,66610.0,0.17422613]
[1729677091370,0.01455153,66611.0,66610.0,0.09925541]
[1729677092580,0.01455153,66611.0,66610.0,0.17378226]
[1729677092775,0.01455153,66611.0,66610.0,0.07452685]
[1729677093080,0.01455153,66611.0,66610.0,0.09914099]
[1729677093576,0.01455153,66611.0,66610.0,0.17362197]
[1729677093778,0.01455153,66611.0,66610.0,0.09914099]
[1729677093981,0.01455153,66611.0,66610.0,0.17360453]
[1729677094166,0.01455153,66611.0,66610.0,0.09914099]
[1729677094370,0.01455153,66611.0,66610.0,0.20067793]
[1729677095669,0.01455153,66611.0,66610.0,0.17360243]
[1729677095869,0.01455153,66611.0,66610.0,0.17356219]
[1729677096569,0.01455153,66611.0,66610.0,0.07446144]
[1729677096771,0.01455153,66611.0,66609.0,0.075106]
[1729677097177,0.01455153,66611.0,66610.0,0.075105]
[1729677098376,0.01455153,66611.0,66608.0,0.19731258]
[1729677098377,0.01455153,66611.0,66608.0,0.27241858]
[1729677099083,0.01455153,66611.0,66608.0,0.10241858]
[1729677099779,0.01455153,66611.0,66608.0,0.02731258]
[1729677099983,0.01455153,66611.0,66604.0,0.17]
[1729677100181,0.01455153,66611.0,66604.0,0.245111]
[1729677100370,0.075109,66607.0,66601.0,0.075115]
[1729677100887,0.075109,66607.0,66600.0,0.17]
[1729677100888,0.075109,66607.0,66602.0,0.075113]
[1729677101078,0.075109,66607.0,66600.0,0.17]
[1729677101878,0.17,66610.0,66604.0,0.075111]
[1729677102474,0.17,66610.0,66605.0,0.07511]
[1729677102982,0.245105,66610.0,66605.0,0.07511]
[1729677103185,0.17,66610.0,66605.0,0.07511]
[1729677103384,0.17,66610.0,66603.0,0.17]
[1729677103686,0.17,66610.0,66606.0,0.075109]
[1729677103882,0.17,66610.0,66607.0,0.21743138]
[1729677104081,0.17,66610.0,66608.0,0.09919488]
[1729677104279,0.17,66610.0,66600.0,0.02719913]
[1729677104280,0.11,66610.0,66609.0,0.09919488]
[1729677105590,0.11,66610.0,66609.0,0.21748407]
[1729677108992,0.11,66610.0,66609.0,0.09919488]
[1729677109181,0.11,66610.0,66609.0,0.21746361]
[1729677109382,0.11,66610.0,66609.0,0.21751826]
[1729677109582,0.11,66610.0,66609.0,0.09919488]
[1729677110090,0.11,66610.0,66609.0,0.21744249]
[1729677111197,0.185105,66610.0,66609.0,0.09919995]
[1729677111494,0.11,66610.0,66609.0,0.09919995]
[1729677111793,0.14507255,66610.0,66608.0,0.0268118]
[1729677112099,0.14507255,66610.0,66606.0,0.075109]
[1729677112100,0.03507255,66609.0,66606.0,0.075109]
[1729677112288,0.03507255,66608.0,66606.0,0.075109]
[1729677112488,0.03507255,66607.0,66606.0,0.075109]
[1729677113194,0.03507255,66609.0,66603.0,0.11]
[1729677113497,0.03507255,66609.0,66606.0,0.075108]
[1729677114813,0.11,66607.0,66606.0,0.075108]
[1729677114989,0.18578954,66607.0,66606.0,0.075108]
[1729677115390,0.18577884,66607.0,66606.0,0.075108]
[1729677116302,0.1450658,66607.0,66606.0,0.075108]
[1729677116889,0.18579892,66607.0,66585.0,0.09992]
[1729677117095,0.11,66593.0,66592.0,0.075124]
[1729677117395,0.1450658,66593.0,66592.0,0.075124]
[1729677117791,0.1450658,66593.0,66589.0,0.11]
[1729677118100,0.11,66590.0,66589.0,0.075127]
[1729677118300,0.11,66593.0,66589.0,0.185127]
[1729677118503,0.0343672,66592.0,66590.0,0.075127]
[1729677118797,0.05737529,66593.0,66591.0,0.21876225]
[1729677119098,0.05737529,66593.0,66584.0,0.12742648]
[1729677119099,0.075122,66595.0,66592.0,0.21876225]
[1729677119400,0.1259,66596.0,66593.0,0.09987549]
[1729677119595,0.1259,66596.0,66594.0,0.09987549]
[1729677119797,0.20102,66596.0,66595.0,0.17442942]
[1729677120106,0.20102,66596.0,66595.0,0.07455393]
[1729677120401,0.075122,66595.0,66594.0,0.07455393]
[1729677120592,0.185122,66595.0,66594.0,0.17423203]
[1729677120905,0.635602,66595.0,66594.0,0.17423203]
[1729677121600,0.075123,66594.0,66593.0,0.07455393]
[1729677122010,0.525603,66594.0,66593.0,0.07455393]
[1729677122505,0.525603,66594.0,66592.0,0.05963499]
[1729677122506,0.45048,66594.0,66592.0,0.05963499]
[1729677122706,0.297424,66593.0,66592.0,0.05963499]
[1729677123003,0.2223,66593.0,66591.0,0.05963499]
[1729677123210,0.299725,66592.0,66591.0,0.05963499]
[1729677123499,0.075127,66590.0,66589.0,0.05963499]
[1729677123694,0.185127,66590.0,66589.0,0.05963499]
[1729677123895,0.075129,66589.0,66585.0,0.14968693]
[1729677124096,0.11,66586.0,66585.0,0.075133]
[1729677124301,0.11,66586.0,66585.0,0.1496424]
[1729677124502,0.11,66586.0,66585.0,0.075133]
[1729677125001,0.11,66586.0,66583.0,0.0745094]
[1729677125002,0.185132,66586.0,66583.0,0.0745094]
[1729677125393,0.075135,66583.0,66580.0,0.10394392]
[1729677125599,0.075137,66581.0,66580.0,0.02943452]
[1729677126107,0.525737,66581.0,66580.0,0.02943452]
[1729677126507,0.525737,66581.0,66580.0,0.07406462]
[1729677127404,0.525737,66581.0,66580.0,0.02943452]
[1729677127611,0.525737,66581.0,66580.0,0.0271817]
[1729677127818,0.4506,66581.0,66577.0,0.0446301]
[1729677128108,0.075141,66578.0,66577.0,0.07163899]
[1729677128608,0.075141,66578.0,66577.0,0.02700889]
[1729677128816,0.075141,66578.0,66576.0,0.0446301]
[1729677128995,0.11,66579.0,66576.0,0.0446301]
[1729677129311,0.075143,66576.0,66573.0,0.0446301]
[1729677129512,0.11,66574.0,66569.0,0.0446301]
[1729677129818,0.11,66574.0,66567.0,0.0446301]
[1729677129819,0.22,66570.0,66567.0,0.0446301]
[1729677130005,0.2329,66569.0,66567.0,0.0446301]
[1729677130410,0.2329,66569.0,66564.0,0.0446301]
[1729677130611,0.11,66565.0,66563.0,0.1197871]
[1729677130903,0.1229,66569.0,66564.0,0.075156]
[1729677131107,0.2329,66569.0,66565.0,0.075155]
[1729677131306,0.1229,66569.0,66568.0,0.075152]
[1729677131498,0.02758004,66571.0,66570.0,0.07515]
[1729677132107,0.1202,66575.0,66571.0,0.075148]
[1729677132312,0.11,66572.0,66571.0,0.075148]
[1729677134409,0.17,66572.0,66571.0,0.075149]
[1729677137716,0.14949447,66579.0,66576.0,0.075142]
[1729677138305,0.17,66577.0,66576.0,0.075142]
[1729677140809,0.245142,66577.0,66576.0,0.075142]
[1729677141004,0.1229,66579.0,66578.0,0.075141]
[1729677141207,0.2929,66579.0,66578.0,0.075141]
[1729677141808,0.17,66579.0,66578.0,0.075141]
[1729677142604,0.24514,66579.0,66578.0,0.075141]
[1729677143412,0.41514,66579.0,66578.0,0.075141]
[1729677144823,0.34,66579.0,66578.0,0.075141]
[1729677145017,0.17,66579.0,66578.0,0.075141]
[1729677145217,0.190635,66584.0,66576.0,0.05955405]
[1729677145418,0.1155,66584.0,66582.0,0.075135]
[1729677145715,0.245135,66583.0,66582.0,0.075135]
[1729677145907,0.245135,66583.0,66571.0,0.02733908]
[1729677145908,0.075137,66581.0,66580.0,0.05955405]
[1729677146109,0.075137,66581.0,66574.0,0.0745094]
[1729677146110,0.075137,66581.0,66575.0,0.0745094]
[1729677146317,0.17,66576.0,66575.0,0.1496534]
[1729677146613,0.17,66576.0,66575.0,0.1755244]
[1729677148808,0.11736131,66576.0,66575.0,0.1755244]
[1729677149017,0.17,66576.0,66575.0,0.1755244]
[1729677151023,0.075143,66576.0,66575.0,0.1003804]
[1729677151228,0.075144,66575.0,66574.0,0.0746387]
[1729677151424,0.075144,66575.0,66574.0,0.10020041]
[1729677151425,0.245144,66575.0,66574.0,0.10020041]
[1729677153128,0.17,66575.0,66574.0,0.10020041]
[1729677153314,0.17,66575.0,66574.0,0.17534541]
[1729677154622,0.17,66578.0,66574.0,0.10020041]
[1729677154921,0.1155,66584.0,66580.0,0.075138]
[1729677154922,0.17,66581.0,66580.0,0.075138]
[1729677155224,0.17,66581.0,66580.0,0.17529683]
[1729677156418,0.11,66581.0,66580.0,0.17529683]
[1729677158123,0.11,66581.0,66580.0,0.26495246]
[1729677159523,0.11,66581.0,66580.0,0.29444251]
[1729677159923,0.11,66581.0,66580.0,0.17529683]
[1729677160517,0.11,66581.0,66580.0,0.32178567]
[1729677160823,0.11,66581.0,66580.0,0.32148986]
[1729677161027,0.11,66581.0,66580.0,0.32151541]
[1729677161733,0.1155,66584.0,66580.0,0.24637741]
[1729677161931,0.1155,66584.0,66583.0,0.08971745]
[1729677162124,0.2255,66584.0,66583.0,0.18959596]
[1729677164116,0.2255,66584.0,66583.0,0.09987851]
[1729677165230,0.300634,66584.0,66583.0,0.09987851]
[1729677166624,0.300634,66584.0,66583.0,0.17501351]
[1729677167226,0.2255,66584.0,66583.0,0.17501351]
[1729677170139,0.2255,66584.0,66583.0,0.075135]
[1729677170446,0.2255,66584.0,66583.0,0.17491698]
[1729677171557,0.1155,66584.0,66583.0,0.17491698]
[1729677171745,0.2255,66584.0,66583.0,0.26463443]
[1729677173056,0.2255,66584.0,66583.0,0.17491698]
[1729677173454,0.2255,66584.0,66583.0,0.26463443]
[1729677173957,0.2255,66584.0,66583.0,0.28667061]
[1729677174360,0.2255,66584.0,66583.0,0.28669185]
[1729677174551,0.2255,66584.0,66583.0,0.2866987]
[1729677175059,0.2255,66584.0,66583.0,0.28675131]
[1729677175759,0.2255,66584.0,66583.0,0.19700577]
[1729677175951,0.2255,66584.0,66583.0,0.28679051]
[1729677176849,0.2255,66584.0,66583.0,0.28681616]
[1729677177049,0.2255,66584.0,66583.0,0.28681643]
[1729677177645,0.2255,66584.0,66583.0,0.28681638]
[1729677178252,0.2255,66584.0,66583.0,0.28679972]
[1729677178458,0.2255,66584.0,66583.0,0.28679375]
[1729677178761,0.2255,66584.0,66583.0,0.28678979]
[1729677179652,0.2255,66584.0,66583.0,0.19700577]
[1729677179850,0.2255,66584.0,66583.0,0.28678728]
[1729677180248,0.2255,66584.0,66583.0,0.28676768]
[1729677180449,0.2255,66584.0,66583.0,0.28675765]
[1729677180654,0.2255,66584.0,66583.0,0.19700577]
[1729677181361,0.2255,66584.0,66583.0,0.31602948]
[1729677181556,0.2255,66584.0,66583.0,0.31604437]
[1729677186855,0.2255,66584.0,66583.0,0.29400819]
[1729677187047,0.300634,66584.0,66583.0,0.29400819]
[1729677187454,0.300634,66584.0,66583.0,0.21887319]
[1729677188057,0.300634,66584.0,66583.0,0.21894559]
[1729677188256,0.300634,66584.0,66583.0,0.29408059]
[1729677188556,0.300634,66584.0,66583.0,0.21894559]
[1729677189459,0.190634,66584.0,66583.0,0.21894559]
[1729677189664,0.2255,66584.0,66583.0,0.21894559]
[1729677189853,0.2255,66584.0,66583.0,0.29408059]
[1729677192763,0.2255,66584.0,66583.0,0.075135]
[1729677205879,0.2255,66584.0,66583.0,0.29426909]
[1729677206090,0.2255,66584.0,66583.0,0.29424488]
[1729677208669,0.1155,66584.0,66583.0,0.29424488]
[1729677208868,0.2255,66584.0,66583.0,0.29424488]
[1729677210181,0.2255,66584.0,66583.0,0.26489311]
[1729677211069,0.11,66584.0,66583.0,0.26489311]
[1729677211967,0.11,66584.0,66583.0,0.17509563]
[1729677212481,0.075131,66587.0,66586.0,0.075132]
[1729677212680,0.075131,66587.0,66586.0,0.17509263]
[1729677212681,0.185131,66587.0,66586.0,0.17509263]
[1729677212887,0.1124,66588.0,66587.0,0.075131]
[1729677213080,0.11,66589.0,66588.0,0.075129]
[1729677213279,0.11,66589.0,66588.0,0.26483784]
[1729677213577,0.2413,66599.0,66588.0,0.26483784]
[1729677213777,0.13173919,66598.0,66594.0,0.075123]
[1729677213981,0.13173919,66598.0,66594.0,0.29392777]
[1729677214180,0.11,66598.0,66597.0,0.075119]
[1729677214383,0.11,66598.0,66597.0,0.17507963]
[1729677215678,0.11,66598.0,66597.0,0.17434349]
[1729677216074,0.11,66598.0,66597.0,0.26394651]
[1729677216480,0.11,66598.0,66597.0,0.17434349]
[1729677216979,0.2413,66599.0,66598.0,0.075118]
[1729677217181,0.01455153,66611.0,66609.0,0.075105]
[1729677217483,0.12455153,66611.0,66610.0,0.075105]
[1729677219177,0.01455153,66611.0,66610.0,0.075105]
[1729677219383,0.12455153,66611.0,66610.0,0.075105]
[1729677221274,0.12455153,66611.0,66610.0,0.09693933]
[1729677222879,0.01455153,66611.0,66610.0,0.09693933]
[1729677224984,0.08965453,66611.0,66610.0,0.075105]
[1729677225787,0.21495453,66611.0,66610.0,0.075105]
[1729677225984,0.075106,66609.0,66608.0,0.04476588]
[1729677226185,0.185106,66609.0,66608.0,0.04476588]
[1729677226578,0.298906,66609.0,66608.0,0.04476588]
[1729677230093,0.298906,66609.0,66607.0,0.06682274]
[1729677230298,0.298906,66609.0,66607.0,0.04476588]
[1729677231103,0.298906,66609.0,66605.0,0.14201281]
[1729677231286,0.11,66606.0,66605.0,0.14201281]
[1729677231892,0.11,66606.0,66605.0,0.09724693]
[1729677235482,0.22,66606.0,66601.0,0.075115]
[1729677235795,0.11,66602.0,66601.0,0.075115]
[1729677236581,0.075116,66601.0,66598.0,0.09631729]
[1729677236785,0.11,66599.0,66594.0,0.075122]
[1729677236999,0.11,66596.0,66595.0,0.07737434]
[1729677237591,0.11,66596.0,66595.0,0.0993015]
[1729677240302,0.11,66596.0,66595.0,0.27274643]
[1729677240495,0.11,66596.0,66595.0,0.19813663]
[1729677241787,0.11,66596.0,66595.0,0.10108747]
[1729677241788,0.07512,66596.0,66595.0,0.10108747]
[1729677241993,0.29512,66596.0,66595.0,0.00225234]
[1729677242199,0.18512,66596.0,66595.0,0.06188785]
[1729677242709,0.18512,66596.0,66595.0,0.06190642]
[1729677243598,0.18512,66596.0,66595.0,0.00225234]
[1729677244602,0.18512,66596.0,66595.0,0.06191259]
[1729677246591,0.18512,66596.0,66595.0,0.13703459]
[1729677246790,0.18512,66596.0,66595.0,0.13702463]
[1729677247000,0.18512,66596.0,66595.0,0.07737434]
[1729677249197,0.18512,66596.0,66595.0,0.13696433]
[1729677249397,0.18512,66596.0,66595.0,0.06184233]
[1729677249602,0.29512,66596.0,66595.0,0.06184233]
[1729677249808,0.18512,66596.0,66595.0,0.06184233]
[1729677249994,0.29512,66596.0,66595.0,0.06184233]
[1729677251204,0.29512,66596.0,66595.0,0.00225234]
[1729677252107,0.18512,66596.0,66595.0,0.00225234]
[1729677252610,0.18512,66596.0,66595.0,0.06184233]
[1729677252800,0.29512,66596.0,66595.0,0.06184233]
[1729677253001,0.29512,66596.0,66595.0,0.00225234]
[1729677255310,0.075122,66595.0,66594.0,0.05958999]
[1729677255517,0.075126,66592.0,66591.0,0.075126]
[1729677255808,0.075126,66592.0,66588.0,0.02204578]
[1729677255809,0.22,66592.0,66588.0,0.02204578]
[1729677256003,0.185125,66592.0,66591.0,0.075126]
[1729677256911,0.22,66592.0,66580.0,0.18846939]
[1729677257110,0.11,66582.0,66581.0,0.075137]
[1729677257308,0.11,66582.0,66581.0,0.11982353]
[1729677260511,0.11,66582.0,66581.0,0.075137]
[1729677262413,0.11,66582.0,66581.0,0.26373309]
[1729677263004,0.11,66582.0,66581.0,0.17415629]
[1729677263709,0.11,66582.0,66581.0,0.29221347]
[1729677264216,0.07513,66588.0,66586.0,0.075131]
[1729677264399,0.07513,66588.0,66587.0,0.09901929]
[1729677265308,0.18513,66588.0,66587.0,0.09901929]
[1729677268007,0.18513,66588.0,66587.0,0.18847413]
[1729677270520,0.18513,66588.0,66587.0,0.02213701]
[1729677270819,0.18513,66588.0,66584.0,0.075134]
[1729677271023,0.11,66585.0,66584.0,0.075134]
[1729677271317,0.185134,66585.0,66584.0,0.02200483]
[1729677271520,0.185134,66585.0,66582.0,0.075135]
[1729677271712,0.11,66583.0,66582.0,0.075135]
[1729677274709,0.11,66583.0,66582.0,0.09641637]
[1729677277636,0.11,66583.0,66582.0,0.19588296]
[1729677277827,0.11,66590.0,66587.0,0.07513]
[1729677278034,0.11,66590.0,66588.0,0.09946659]
[1729677278226,0.11,66590.0,66589.0,0.09946659]
[1729677279232,0.185127,66590.0,66589.0,0.09946659]
[1729677280026,0.075127,66590.0,66589.0,0.09946659]
[1729677281231,0.075127,66590.0,66589.0,0.09948139]
[1729677283138,0.075127,66590.0,66589.0,0.17460939]
[1729677283333,0.185127,66590.0,66589.0,0.17460939]
[1729677286035,0.185127,66590.0,66589.0,0.19636343]
[1729677286333,0.185127,66590.0,66589.0,0.28598823]
[1729677287835,0.185127,66590.0,66589.0,0.19636343]
[1729677288135,0.185127,66590.0,66589.0,0.28592339]
[1729677288541,0.185127,66590.0,66589.0,0.19636343]
[1729677288725,0.185127,66590.0,66589.0,0.28592364]
[1729677290234,0.185127,66590.0,66589.0,0.19636343]
[1729677291338,0.185127,66590.0,66589.0,0.29279137]
[1729677291529,0.185127,66590.0,66589.0,0.17463857]
[1729677292432,0.075127,66590.0,66589.0,0.17463857]
[1729677292633,0.075127,66590.0,66589.0,0.075128]
[1729677299641,0.075127,66590.0,66589.0,0.17433802]
[1729677300434,0.075127,66590.0,66589.0,0.17430566]
[1729677300849,0.075127,66590.0,66589.0,0.29251244]
[1729677301150,0.075127,66590.0,66589.0,0.26387622]
[1729677301350,0.075127,66590.0,66589.0,0.26387956]
[1729677301543,0.075127,66590.0,66589.0,0.17430566]
[1729677303047,0.075127,66590.0,66589.0,0.26390475]
[1729677303653,0.075127,66590.0,66589.0,0.16472709]
[1729677303856,0.075127,66590.0,66589.0,0.26391506]
[1729677305651,0.185127,66590.0,66589.0,0.26391506]
[1729677306155,0.185127,66590.0,66589.0,0.17431597]
[1729677306156,0.075127,66590.0,66589.0,0.17431597]
[1729677306459,0.075127,66590.0,66589.0,0.09918797]
[1729677306662,0.075127,66590.0,66589.0,0.18878706]
[1729677306843,0.075127,66590.0,66589.0,0.09918797]
[1729677307760,0.075128,66589.0,66588.0,0.02194886]
[1729677307956,0.03499894,66589.0,66587.0,0.06820007]
[1729677308143,0.075142,66577.0,66576.0,0.075142]
[1729677308343,0.075145,66574.0,66573.0,0.0022532]
[1729677308553,0.22014394,66574.0,66573.0,0.0022532]
[1729677309055,0.33014394,66574.0,66573.0,0.0022532]
[1729677309257,0.22014394,66574.0,66573.0,0.0022532]
[1729677309451,0.22014394,66574.0,66570.0,0.02133392]
[1729677309452,0.14499894,66574.0,66570.0,0.02133392]
[1729677309657,0.07515,66570.0,66565.0,0.075155]
[1729677309866,0.11,66566.0,66565.0,0.075155]
[1729677310154,0.11,66566.0,66554.0,0.42168]
[1729677310363,0.11,66559.0,66558.0,0.075163]
[1729677312052,0.14378451,66559.0,66558.0,0.078163]
[1729677312260,0.14379959,66559.0,66558.0,0.078163]
[1729677312444,0.11,66559.0,66558.0,0.078163]
[1729677313165,0.3392,66563.0,66560.0,0.075161]
[1729677313166,0.11,66561.0,66560.0,0.075161]
[1729677313453,0.2221,66563.0,66560.0,0.11]
[1729677313754,0.2221,66563.0,66562.0,0.075159]
[1729677314664,0.11,66563.0,66562.0,0.14984646]
[1729677315450,0.11,66563.0,66562.0,0.075159]
[1729677315854,0.11,66563.0,66559.0,0.075162]
[1729677316051,0.11,66560.0,66559.0,0.075162]
[1729677317756,0.11,66560.0,66559.0,0.077162]
[1729677320461,0.117,66563.0,66561.0,0.075159]
[1729677320663,0.11,66562.0,66561.0,0.075159]
[1729677323769,0.2226,66562.0,66561.0,0.075159]
[1729677329573,0.11,66562.0,66561.0,0.075159]
[1729677330170,0.11,66562.0,66561.0,0.13467402]
[1729677330566,0.11,66565.0,66561.0,0.11]
[1729677330773,0.2277,66569.0,66566.0,0.075154]
[1729677331072,0.2277,66569.0,66567.0,0.04463254]
[1729677331377,0.11,66568.0,66566.0,0.075154]
[1729677331684,0.11,66568.0,66567.0,0.075153]
[1729677333207,0.075153,66567.0,66566.0,0.05951365]
[1729677334010,0.075153,66567.0,66566.0,0.08152374]
[1729677334498,0.075153,66567.0,66566.0,0.02201009]
[1729677334702,0.22,66568.0,66565.0,0.075155]
[1729677334895,0.075154,66566.0,66565.0,0.075155]
[1729677336305,0.22,66568.0,66551.0,0.00225373]
[1729677336510,0.11,66558.0,66554.0,0.11]
[1729677336713,0.11,66558.0,66557.0,0.075164]
[1729677338302,0.11,66558.0,66557.0,0.29784851]
[1729677339508,0.11,66558.0,66557.0,0.079164]
[1729677341723,0.11,66558.0,66557.0,0.29801365]
[1729677344505,0.11,66558.0,66557.0,0.22284965]
[1729677345014,0.185163,66558.0,66557.0,0.46573567]
[1729677345218,0.185163,66558.0,66557.0,0.36109566]
[1729677346009,0.185163,66558.0,66557.0,0.46572014]
[1729677346319,0.11,66558.0,66557.0,0.54088414]
[1729677346621,0.075163,66559.0,66557.0,0.54088261]
[1729677346818,0.11,66558.0,66557.0,0.18378695]
[1729677347016,0.11,66558.0,66557.0,0.46451275]
[1729677347321,0.11,66558.0,66557.0,0.3598898]
[1729677347322,0.185163,66558.0,66557.0,0.3598898]
[1729677347511,0.11,66558.0,66557.0,0.3598898]
[1729677347702,0.11,66558.0,66557.0,0.53968183]
[1729677348326,0.11,66558.0,66557.0,0.53968081]
[1729677348516,0.11,66558.0,66557.0,0.4350538]
[1729677348712,0.11,66558.0,66557.0,0.53968546]
[1729677348922,0.11,66558.0,66557.0,0.4350538]
[1729677356822,0.11,66558.0,66557.0,0.29732949]
[1729677358728,0.1099,66563.0,66559.0,0.075161]
[1729677358931,0.1099,66563.0,66560.0,0.29332549]
[1729677359125,0.11,66561.0,66560.0,0.07516]
[1729677359423,0.18516,66561.0,66560.0,0.21813918]
[1729677361022,0.18516,66561.0,66560.0,0.21840772]
[1729677361228,0.18516,66561.0,66560.0,0.29456872]
[1729677361625,0.18516,66561.0,66560.0,0.076161]
[1729677362618,0.18516,66561.0,66560.0,0.29466475]
[1729677362926,0.11,66561.0,66560.0,0.29466475]
[1729677364834,0.11,66561.0,66560.0,0.31597776]
[1729677365429,0.2277,66569.0,66562.0,0.075159]
[1729677365731,0.2277,66569.0,66568.0,0.185152]
[1729677365933,0.2277,66569.0,66568.0,0.40288951]
[1729677366138,0.1094,66571.0,66570.0,0.07515]
[1729677366432,0.075132,66586.0,66570.0,0.07515]
[1729677366433,0.11,66580.0,66571.0,0.075149]
[1729677366631,0.11,66580.0,66579.0,0.07514]
[1729677367830,0.11,66580.0,66579.0,0.17388562]
[1729677368025,0.14604461,66580.0,66579.0,0.07514]
[1729677368226,0.11,66580.0,66579.0,0.07514]
[1729677368424,0.185138,66580.0,66579.0,0.07514]
[1729677372128,0.185138,66580.0,66579.0,0.09641021]
[1729677374435,0.295138,66580.0,66579.0,0.09641021]
[1729677375031,0.295138,66580.0,66579.0,0.15605089]
[1729677375329,0.295138,66580.0,66579.0,0.09641021]
[1729677375532,0.185138,66580.0,66579.0,0.09641021]
[1729677375735,0.295138,66580.0,66579.0,0.09641021]
[1729677376135,0.185138,66580.0,66579.0,0.09641021]
[1729677377243,0.185138,66580.0,66579.0,0.02127021]
[1729677377244,0.295138,66580.0,66579.0,0.02127021]
[1729677377543,0.07514,66579.0,66577.0,0.075141]
[1729677377730,0.185141,66578.0,66577.0,0.075141]
[1729677378130,0.185141,66578.0,66577.0,0.05958062]
[1729677378326,0.185141,66578.0,66574.0,0.04469555]
[1729677378327,0.11,66578.0,66574.0,0.04469555]
[1729677378530,0.11,66575.0,66573.0,0.04469555]
[1729677378734,0.075146,66573.0,66572.0,0.04469555]
[1729677378938,0.185146,66573.0,66572.0,0.04469555]
[1729677379838,0.075147,66572.0,66571.0,0.04469555]
[1729677380339,0.11,66573.0,66572.0,0.075147]
[1729677380545,0.11,66573.0,66572.0,0.13472606]
[1729677380864,0.11,66573.0,66572.0,0.075147]
[1729677381941,0.185146,66573.0,66572.0,0.075147]
[1729677383538,0.075148,66572.0,66570.0,0.02129513]
[1729677383743,0.075148,66572.0,66569.0,0.075151]
[1729677383946,0.11,66567.0,66563.0,0.075158]
[1729677384132,0.11,66567.0,66566.0,0.075154]
[1729677390152,0.075147,66573.0,66569.0,0.075151]
[1729677390341,0.075147,66573.0,66570.0,0.09870878]
[1729677390542,0.075147,66573.0,66572.0,0.07452637]
[1729677390744,0.075147,66573.0,66572.0,0.17323515]
[1729677391137,0.075147,66573.0,66572.0,0.09870878]
[1729677391349,0.185147,66573.0,66572.0,0.1732433]
[1729677391950,0.185147,66573.0,66572.0,0.17324344]
[1729677392345,0.185147,66573.0,66571.0,0.07453848]
[1729677392346,0.11,66573.0,66571.0,0.07453848]
[1729677392549,0.11,66573.0,66562.0,0.02164539]
[1729677392550,0.22,66572.0,66569.0,0.07453848]
[1729677392754,0.22,66570.0,66568.0,0.07453848]
[1729677393055,0.075152,66568.0,66567.0,0.07453848]
[1729677393257,0.185152,66568.0,66567.0,0.1731141]
[1729677393557,0.295152,66568.0,66567.0,0.1731141]
[1729677394154,0.295152,66568.0,66567.0,0.09857562]
[1729677395853,0.295152,66568.0,66567.0,0.09860749]
[1729677396572,0.185152,66568.0,66567.0,0.09860749]
[1729677397159,0.185152,66568.0,66564.0,0.075156]
[1729677397365,0.11,66565.0,66564.0,0.075156]
[1729677405083,0.11,66565.0,66564.0,0.29127042]
[1729677408173,0.221,66574.0,66564.0,0.40127042]
[1729677408376,0.1067,66577.0,66576.0,0.075143]
[1729677408580,0.1067,66577.0,66576.0,0.17373707]
[1729677408776,0.1067,66577.0,66576.0,0.26325493]
[1729677410276,0.291842,66577.0,66576.0,0.17335245]
[1729677410477,0.510242,66577.0,66576.0,0.17280825]
[1729677410781,0.075143,66576.0,66575.0,0.0745988]
[1729677410983,0.075144,66575.0,66574.0,0.0745988]
[1729677411179,0.185144,66575.0,66574.0,0.17299363]
[1729677411883,0.11,66575.0,66573.0,0.07459456]
[1729677412073,0.11,66575.0,66569.0,0.08951786]
[1729677412074,0.23590919,66574.0,66572.0,0.04018145]
[1729677412275,0.3675788,66573.0,66572.0,0.04018145]
[1729677413180,0.07515,66570.0,66569.0,0.07515]
[1729677413386,0.35037671,66570.0,66569.0,0.07515]
[1729677413593,0.4762859,66570.0,66569.0,0.07515]
[1729677415071,0.4748108,66570.0,66569.0,0.07515]
[1729677415875,0.075151,66569.0,66566.0,0.075153]
[1729677416079,0.11,66567.0,66566.0,0.075153]
[1729677416283,0.23443409,66567.0,66566.0,0.075153]
[1729677418277,0.23443409,66567.0,66566.0,0.09648701]
[1729677418484,0.30958709,66567.0,66566.0,0.02133401]
[1729677418790,0.30958709,66567.0,66564.0,0.075156]
[1729677419086,0.075155,66565.0,66564.0,0.02149873]
[1729677419284,0.19958909,66565.0,66563.0,0.075157]
[1729677419486,0.38468328,66564.0,66563.0,0.075157]
[1729677419874,0.56983928,66564.0,66560.0,0.075161]
[1729677420084,0.11,66561.0,66558.0,0.10429117]
[1729677420391,0.11,66564.0,66559.0,0.21662103]
[1729677420392,0.075161,66560.0,66559.0,0.21662103]
[1729677420594,0.185161,66560.0,66559.0,0.21662103]
[1729677421778,0.185161,66560.0,66559.0,0.21862103]
[1729677422998,0.185161,66560.0,66559.0,0.21899619]
[1729677423195,0.185161,66560.0,66559.0,0.10099634]
[1729677424287,0.185161,66560.0,66559.0,0.19053143]
[1729677425381,0.185161,66560.0,66559.0,0.10099634]
[1729677426384,0.295161,66560.0,66559.0,0.10099634]
[1729677426589,0.295161,66560.0,66559.0,0.002]
[1729677426590,0.185161,66560.0,66559.0,0.002]